bitfinex/quotes_SOLUSD_20241213
["timestamp","ask_amount","ask_price","bid_price","bid_amount"]
[1734103911191,11.0864,225.51,225.42,13.0951182]
[1734103911396,11.9556,225.53,225.44,0.12549]
[1734103911755,11.9556,225.53,225.45,0.12549]
[1734103912393,11.9556,225.53,225.44,0.12549]
[1734103912692,11.0854,225.52,225.44,0.12549]
[1734103913598,11.0854,225.52,225.43,0.25098]
[1734103914695,11.0854,225.52,225.38,12.9696282]
[1734103915069,7.39,225.54,225.43,0.12549]
[1734103915273,11.0838,225.56,225.46,0.12549]
[1734103915777,11.0838,225.56,225.47,0.12549]
[1734103915973,11.0838,225.56,225.47,24.027864]
[1734103916871,20.0,225.53,225.47,0.12549]
[1734103917072,20.0,225.53,225.41,23.776884]
[1734103917798,20.0,225.53,225.42,0.12549]
[1734103918369,20.0,225.53,225.42,0.25098]
[1734103918564,20.0,225.53,225.4,24.027864]
[1734103918996,20.0,225.53,225.4,36.9974922]
[1734103919303,11.0854,225.52,225.4,36.9974922]
[1734103919800,11.0854,225.52,225.4,24.027864]
[1734103919991,11.0854,225.52,225.4,36.9974922]
[1734103920382,11.0854,225.52,225.42,0.12549]
[1734103920584,11.0854,225.52,225.42,24.027864]
[1734103922670,11.0839,225.56,225.46,0.12549]
[1734103922875,7.3772,225.59,225.49,0.12549]
[1734103924171,7.3772,225.59,225.46,0.12549]
[1734103924370,20.0,225.56,225.45,0.12549]
[1734103924569,20.0,225.56,225.44,0.12549]
[1734103924792,20.0,225.56,225.41,0.12549]
[1734103925204,20.0,225.56,225.41,0.25098]
[1734103925499,20.0,225.56,225.41,0.12549]
[1734103925708,20.0,225.52,225.35,11.5346]
[1734103925875,20.0,225.52,225.36,12.9696282]
[1734103926075,20.0,225.48,225.38,0.12549]
[1734103926293,20.0,225.48,225.37,12.9696282]
[1734103926890,20.0,225.48,225.38,0.12549]
[1734103927074,31.0875,225.48,225.35,24.5042282]
[1734103927471,31.0875,225.48,225.36,0.12549]
[1734103927781,53.2624,225.48,225.36,0.12549]
[1734103928291,53.2624,225.48,225.35,11.5346]
[1734103930111,53.2624,225.48,225.39,13.2206082]
[1734103930112,31.0875,225.48,225.39,13.2206082]
[1734103930271,11.0875,225.48,225.39,13.2206082]
[1734103930478,23.211,225.52,225.41,0.25098]
[1734103930886,11.0859,225.52,225.42,0.12549]
[1734103931302,11.0859,225.52,225.37,12.9696282]
[1734103931604,33.2568,225.52,225.38,0.12549]
[1734103931825,20.0,225.49,225.38,0.25098]
[1734103932109,11.0874,225.48,225.38,0.25098]
[1734103932480,11.0874,225.48,225.38,12.9696282]
[1734103932686,11.0874,225.48,225.39,0.25098]
[1734103932886,11.0874,225.48,225.4,12.9696282]
[1734103933402,11.0874,225.48,225.37,13.0951182]
[1734103933605,11.0874,225.48,225.37,0.12549]
[1734103934117,11.0874,225.48,225.34,20.5252282]
[1734103935625,11.0874,225.48,225.35,12.9696282]
[1734103935920,11.0874,225.48,225.36,13.2206082]
[1734103936112,11.0874,225.48,225.38,12.9696282]
[1734103936311,11.0874,225.48,225.36,0.25098]
[1734103936312,11.0874,225.48,225.39,12.9696282]
[1734103936508,11.0874,225.48,225.38,12.9696282]
[1734103937131,11.0874,225.48,225.39,13.2206082]
[1734103937420,11.0859,225.52,225.42,12.9696282]
[1734103937621,11.0859,225.52,225.39,12.9696282]
[1734103937924,20.0,225.49,225.36,12.9696282]
[1734103938113,20.0,225.49,225.35,13.0951182]
[1734103938314,11.0874,225.48,225.35,13.0951182]
[1734103938518,11.0874,225.48,225.37,0.12549]
[1734103938814,11.0874,225.48,225.39,12.9696282]
[1734103939015,11.0874,225.48,225.37,12.9696282]
[1734103939730,11.0874,225.48,225.37,13.0951182]
[1734103940026,11.0874,225.48,225.36,13.0951182]
[1734103940196,11.0874,225.48,225.37,13.0951182]
[1734103940514,11.0874,225.48,225.39,12.9696282]
[1734103940711,20.0,225.5,225.41,12.9696282]
[1734103942696,11.0869,225.49,225.39,12.9696282]
[1734103943206,20.0,225.5,225.41,12.9696282]
[1734103944503,20.0,225.5,225.4,12.9696282]
[1734103946422,20.0,225.5,225.41,12.9696282]
[1734103947102,11.0869,225.49,225.38,12.9696282]
[1734103947307,11.0869,225.49,225.37,12.9696282]
[1734103947614,20.0,225.46,225.36,12.9696282]
[1734103948834,27.0871,225.49,225.37,0.12549]
[1734103950108,27.0871,225.49,225.3,12.413]
[1734103950109,20.0,225.45,225.33,12.9696282]
[1734103950316,31.5126,225.45,225.32,12.9696282]
[1734103950715,31.5126,225.45,225.34,12.9696282]
[1734103951729,11.0894,225.44,225.34,12.9696282]
[1734103951930,11.0894,225.44,225.35,13.2206082]
[1734103952804,20.0,225.45,225.39,0.12549]
[1734103953008,20.0,225.45,225.37,12.9696282]
[1734103953201,20.0,225.45,225.35,0.12549]
[1734103954036,11.0894,225.44,225.35,0.12549]
[1734103955536,11.0894,225.44,225.35,13.0951182]
[1734103955714,20.0,225.45,225.37,0.12549]
[1734103955919,20.0,225.45,225.37,12.9696282]
[1734103956125,20.0,225.45,225.38,0.12549]
[1734103956914,20.0,225.45,225.39,12.9696282]
[1734103957234,20.0,225.45,225.38,0.12549]
[1734103957235,7.0871,225.49,225.43,0.12549]
[1734103958344,11.5126,225.53,225.46,13.2206082]
[1734103958530,7.0853,225.55,225.47,13.0951182]
[1734103958847,7.0853,225.55,225.49,12.9696282]
[1734103959017,22.5937,225.58,225.49,12.9696282]
[1734103959212,11.5108,225.58,225.51,12.9696282]
[1734103959522,11.0801,225.63,225.54,0.25098]
[1734103959920,11.0801,225.63,225.54,0.12549]
[1734103960233,11.0801,225.63,225.52,0.12549]
[1734103960435,11.0801,225.63,225.51,0.25098]
[1734103961211,11.0801,225.63,225.51,0.12549]
[1734103961626,20.0,225.6,225.49,0.25098]
[1734103963128,31.0816,225.6,225.49,0.25098]
[1734103963733,31.0816,225.6,225.48,0.12549]
[1734103963923,20.0,225.59,225.45,12.9696282]
[1734103964126,20.0,225.57,225.44,32.9696282]
[1734103964541,20.0,225.57,225.45,0.12549]
[1734103965135,31.0832,225.57,225.45,0.12549]
[1734103965344,31.0832,225.57,225.46,13.0951182]
[1734103965523,20.0,225.58,225.49,0.25098]
[1734103966948,20.0,225.58,225.49,0.12549]
[1734103967183,20.0,225.58,225.48,0.12549]
[1734103967357,31.0826,225.58,225.45,0.12549]
[1734103967530,31.0826,225.58,225.44,13.0951182]
[1734103968037,31.0826,225.58,225.45,0.12549]
[1734103968241,31.0826,225.58,225.45,13.0951182]
[1734103968623,31.0826,225.58,225.47,0.25098]
[1734103969149,0.5369261,225.65,225.49,0.25098]
[1734103969150,20.0,225.59,225.49,0.25098]
[1734103969661,11.081,225.62,225.51,0.12549]
[1734103970150,11.081,225.62,225.52,0.12549]
[1734103971242,0.5369261,225.65,225.52,0.12549]
[1734103971445,0.5369261,225.65,225.51,0.12549]
[1734103972248,11.0795,225.64,225.51,0.25098]
[1734103972777,11.0795,225.64,225.51,0.12549]
[1734103974945,20.0,225.61,225.48,0.12549]
[1734103975153,20.0,225.61,225.45,12.9696282]
[1734103975355,20.0,225.61,225.46,0.12549]
[1734103976259,11.0815,225.6,225.46,0.12549]
[1734103976645,11.0815,225.6,225.47,0.12549]
[1734103977737,11.0815,225.6,225.49,0.12549]
[1734103978359,11.0815,225.6,225.5,13.0951182]
[1734103978559,20.0,225.61,225.52,13.0951182]
[1734103978867,0.5369261,225.65,225.56,0.12549]
[1734103979252,11.0795,225.64,225.56,0.12549]
[1734103979579,0.5369261,225.65,225.55,0.12549]
[1734103979880,0.5369261,225.65,225.57,0.25098]
[1734103980175,20.5369261,225.65,225.55,0.12549]
[1734103980585,20.5369261,225.65,225.55,13.0951182]
[1734103980746,20.5369261,225.65,225.56,0.12549]
[1734103981781,20.5369261,225.65,225.57,0.12549]
[1734103982453,20.5369261,225.65,225.56,0.25098]
[1734103982656,20.5369261,225.65,225.56,0.91582652]
[1734103982978,11.6162261,225.65,225.58,0.25098]
[1734103983377,11.6162261,225.65,225.56,36.9974922]
[1734103983554,0.5369261,225.65,225.58,0.25098]
[1734103984056,0.5369261,225.65,225.58,0.12549]
[1734103984380,0.5369261,225.65,225.57,0.25098]
[1734103984763,20.0,225.64,225.57,0.25098]
[1734103985854,11.0796,225.64,225.55,13.0951182]
[1734103986979,11.0796,225.64,225.56,0.12549]
[1734103988079,11.0796,225.64,225.55,0.12549]
[1734103988377,11.0796,225.64,225.52,12.9696282]
[1734103988564,11.0796,225.64,225.51,32.6293282]
[1734103988759,20.0,225.61,225.51,19.6597]
[1734103989374,20.0,225.61,225.45,19.4789]
[1734103989749,23.776884,225.6,225.46,0.12549]
[1734103989954,20.0,225.57,225.45,19.4789]
[1734103990183,11.0835,225.56,225.45,19.4789]
[1734103990490,20.0,225.53,225.45,19.4789]
[1734103991377,11.0854,225.52,225.42,0.12549]
[1734103991589,11.0854,225.52,225.41,0.12549]
[1734103991803,11.0854,225.52,225.4,19.2594]
[1734103992261,11.0854,225.52,225.41,0.12549]
[1734103993083,20.0,225.49,225.4,19.2594]
[1734103993769,20.0,225.49,225.37,12.9696282]
[1734103994276,20.0,225.49,225.38,0.12549]
[1734103994460,20.0,225.49,225.38,13.0951182]
[1734103994658,31.087,225.49,225.39,12.9696282]
[1734103994885,31.087,225.49,225.37,12.9696282]
[1734103995058,31.087,225.49,225.36,12.9696282]
[1734103995767,31.087,225.49,225.39,13.0951182]
[1734103995971,31.087,225.49,225.41,0.25098]
[1734103996478,20.0,225.49,225.43,12.9696282]
[1734103996656,11.0849,225.54,225.44,0.12549]
[1734103996853,7.5644,225.55,225.47,0.12549]
[1734103997059,12.0145,225.57,225.47,0.25098]
[1734103997292,11.0835,225.56,225.44,12.9696282]
[1734103997464,11.0835,225.56,225.45,0.25098]
[1734103997795,11.0835,225.56,225.42,12.9696282]
[1734103998157,20.0,225.53,225.43,0.12549]
[1734103998353,20.0,225.53,225.43,13.0951182]
[1734103999091,20.0,225.5,225.41,0.12549]
[1734103999381,20.0,225.5,225.37,12.9696282]
[1734103999591,20.0,225.5,225.36,12.9696282]
[1734103999789,20.0,225.5,225.35,18.6881]
[1734103999790,20.0,225.5,225.35,31.6577282]
[1734104000162,20.0,225.5,225.36,13.0951182]
[1734104000865,20.0,225.46,225.39,12.9696282]
[1734104001475,20.0,225.46,225.39,0.12549]
[1734104002203,31.0887,225.46,225.35,31.6577282]
[1734104002372,31.0887,225.46,225.35,18.6881]
[1734104002775,31.0887,225.46,225.36,12.9696282]
[1734104003085,31.0887,225.46,225.35,31.6577282]
[1734104003469,31.0887,225.46,225.38,0.12549]
[1734104003670,31.0887,225.46,225.38,0.25098]
[1734104003873,31.0887,225.46,225.35,31.6577282]
[1734104004269,31.0887,225.46,225.29,0.665474]
[1734104004270,31.0887,225.46,225.34,0.25098]
[1734104004590,31.0887,225.46,225.33,0.12549]
[1734104004591,20.0,225.44,225.33,0.12549]
[1734104004886,20.0,225.42,225.27,12.9696282]
[1734104005394,23.776884,225.41,225.26,12.9696282]
[1734104005690,23.776884,225.41,225.27,0.12549]
[1734104005865,11.0913,225.4,225.27,0.12549]
[1734104006281,11.0913,225.4,225.26,12.9696282]
[1734104006469,20.0,225.37,225.25,12.9696282]
[1734104006885,31.093,225.37,225.25,12.9696282]
[1734104007484,31.093,225.37,225.24,32.6004282]
[1734104007693,31.093,225.37,225.22,12.9696282]
[1734104007887,20.0,225.35,225.21,12.9696282]
[1734104008189,23.776884,225.35,225.2,12.9696282]
[1734104008575,11.323,225.36,225.23,0.12549]
[1734104008774,11.323,225.36,225.23,13.0951182]
[1734104009112,11.0938,225.35,225.23,0.12549]
[1734104009680,11.0938,225.35,225.18,12.9696282]
[1734104009681,20.0,225.31,225.18,12.9696282]
[1734104009902,20.0,225.31,225.15,12.9696282]
[1734104010293,20.0,225.31,225.16,0.12549]
[1734104010699,20.0,225.31,225.15,12.9696282]
[1734104011402,11.0963,225.3,225.15,12.9696282]
[1734104011601,11.0963,225.3,225.16,0.12549]
[1734104012304,11.0963,225.3,225.16,0.25098]
[1734104012504,11.0963,225.3,225.17,12.9696282]
[1734104012710,11.0963,225.3,225.18,0.12549]
[1734104013298,20.0,225.27,225.17,0.12549]
[1734104013608,11.0978,225.27,225.15,0.12549]
[1734104013804,7.6646,225.26,225.12,12.9696282]
[1734104014808,7.6646,225.26,225.13,0.12549]
[1734104015186,7.6646,225.26,225.15,12.9696282]
[1734104015497,7.6646,225.26,225.16,0.12549]
[1734104015699,7.6646,225.26,225.15,0.12549]
[1734104015906,11.0987,225.25,225.15,0.12549]
[1734104016199,7.6646,225.26,225.18,0.12549]
[1734104016416,18.253,225.33,225.19,12.9696282]
[1734104016718,18.253,225.33,225.2,0.12549]
[1734104017624,20.0,225.3,225.2,0.12549]
[1734104018508,20.0,225.3,225.19,0.12549]
[1734104018710,31.0963,225.3,225.19,0.12549]
[1734104019082,31.0963,225.3,225.17,0.25098]
[1734104019695,31.0963,225.3,225.18,0.12549]
[1734104019989,20.0,225.3,225.2,0.25098]
[1734104020218,20.0,225.3,225.21,0.12549]
[1734104020392,7.1578,225.33,225.23,12.9696282]
[1734104020596,11.0947,225.34,225.24,13.0951182]
[1734104020794,18.4692,225.38,225.27,0.12549]
[1734104021100,18.4692,225.38,225.28,0.12549]
[1734104021287,18.4692,225.38,225.24,12.9696282]
[1734104021487,18.4692,225.38,225.23,0.12549]
[1734104022205,20.0,225.34,225.21,0.25098]
[1734104022415,20.0,225.34,225.22,12.9696282]
[1734104022719,20.0,225.32,225.23,0.12549]
[1734104023520,20.0,225.32,225.22,0.12549]
[1734104024109,20.0,225.32,225.22,13.0951182]
[1734104025216,20.0,225.32,225.23,12.9696282]
[1734104025419,18.4688,225.38,225.28,12.9696282]
[1734104025625,18.4688,225.38,225.28,13.0951182]
[1734104027895,18.4688,225.38,225.26,0.25098]
[1734104028788,18.4688,225.38,225.26,0.12549]
[1734104029127,20.0,225.34,225.21,12.9696282]
[1734104029918,20.0,225.34,225.22,0.12549]
[1734104030112,11.0948,225.33,225.22,0.12549]
[1734104030803,11.0948,225.33,225.22,0.25098]
[1734104031334,20.0,225.3,225.16,12.9696282]
[1734104031642,20.0,225.26,225.14,19.8263]
[1734104031806,7.5051,225.27,225.14,19.8263]
[1734104032012,7.5051,225.27,225.15,12.9696282]
[1734104032232,7.5051,225.27,225.16,12.9696282]
[1734104032542,7.5051,225.27,225.14,32.7959282]
[1734104032715,20.0,225.24,225.13,12.9696282]
[1734104033224,18.603,225.27,225.15,0.12549]
[1734104033402,18.603,225.27,225.14,12.99364582]
[1734104033822,18.603,225.27,225.15,0.12549]
[1734104034020,18.603,225.27,225.15,0.25098]
[1734104037343,18.603,225.27,225.16,0.25098]
[1734104040422,20.0,225.24,225.13,0.12549]
[1734104040621,20.0,225.24,225.11,20.7894258]
[1734104041119,20.0,225.24,225.13,20.7894258]
[1734104041520,20.0,225.24,225.13,0.12549]
[1734104041707,31.0994,225.24,225.13,20.7894258]
[1734104041911,7.5051,225.27,225.17,20.7894258]
[1734104042112,12.2458,225.29,225.21,20.7894258]
[1734104042441,7.4965,225.32,225.21,20.7894258]
[1734104042828,7.4965,225.32,225.23,20.7894258]
[1734104043140,7.4965,225.32,225.24,20.7894258]
[1734104043347,12.0793,225.34,225.26,20.7894258]
[1734104044044,12.0793,225.34,225.25,20.7894258]
[1734104044343,12.0793,225.34,225.23,20.7894258]
[1734104044538,11.0948,225.33,225.22,20.7894258]
[1734104044908,11.0948,225.33,225.23,20.7894258]
[1734104045116,11.0948,225.33,225.24,20.7894258]
[1734104045344,18.5895,225.37,225.26,20.7894258]
[1734104045710,18.5895,225.37,225.24,20.7894258]
[1734104046226,31.0947,225.34,225.21,20.7894258]
[1734104046434,31.0947,225.34,225.21,0.12549]
[1734104046658,31.0947,225.34,225.21,20.9149158]
[1734104047150,31.0947,225.34,225.22,20.7894258]
[1734104047827,31.0947,225.34,225.21,20.9149158]
[1734104048238,31.0947,225.34,225.22,20.7894258]
[1734104048850,31.0947,225.34,225.23,20.7894258]
[1734104049364,31.0947,225.34,225.22,20.7894258]
[1734104049569,31.0947,225.34,225.21,20.7894258]
[1734104049865,31.0947,225.34,225.22,20.7894258]
[1734104050060,31.0947,225.34,225.21,20.7894258]
[1734104050638,31.0947,225.34,225.22,20.7894258]
[1734104051139,31.0947,225.34,225.23,21.0404058]
[1734104051760,31.0947,225.34,225.24,20.7894258]
[1734104052631,31.0947,225.34,225.23,20.7894258]
[1734104052939,31.0947,225.34,225.23,0.25098]
[1734104053483,31.0947,225.34,225.23,20.77442518]
[1734104053835,31.0947,225.34,225.22,0.12549]
[1734104053836,20.0,225.34,225.24,20.77442518]
[1734104054067,20.0,225.34,225.25,0.25098]
[1734104055245,20.0,225.34,225.25,0.12549]
[1734104055637,20.0,225.34,225.24,0.25098]
[1734104056052,20.0,225.34,225.22,12.98248846]
[1734104056253,20.0,225.34,225.21,12.98248846]
[1734104056459,11.0948,225.33,225.21,12.98248846]
[1734104056661,11.0948,225.33,225.22,13.10797846]
[1734104056849,20.0,225.34,225.25,12.98248846]
[1734104057238,20.0,225.34,225.26,12.98248846]
[1734104057567,20.0,225.34,225.25,12.98248846]
[1734104057869,11.0934,225.36,225.25,12.98248846]
[1734104058169,18.2602,225.43,225.31,12.98248846]
[1734104058542,18.2602,225.43,225.31,0.25098]
[1734104058870,18.2602,225.43,225.28,12.98248846]
[1734104059661,18.2602,225.43,225.3,12.98248846]
[1734104059841,18.2602,225.43,225.31,12.98248846]
[1734104061971,18.2602,225.43,225.29,0.12549]
[1734104061972,18.2602,225.43,225.3,12.98248846]
[1734104062674,0.12549,225.39,225.23,12.98248846]
[1734104062861,20.0,225.36,225.23,12.98248846]
[1734104063068,20.0,225.36,225.24,12.98248846]
[1734104063671,20.0,225.36,225.25,12.98248846]
[1734104064036,20.0,225.36,225.24,12.98248846]
[1734104065266,20.0,225.36,225.25,12.98248846]
[1734104066543,20.0,225.36,225.24,12.98248846]
[1734104067078,7.6332,225.34,225.23,12.98248846]
[1734104067969,11.4877,225.33,225.22,20.0]
[1734104068171,11.4877,225.33,225.22,32.98248846]
[1734104068351,11.4877,225.33,225.23,12.98248846]
[1734104068665,11.4877,225.33,225.22,32.98248846]
[1734104069769,11.4877,225.33,225.22,12.98248846]
[1734104070979,11.4877,225.33,225.23,12.98248846]
[1734104071854,11.4877,225.33,225.26,12.98248846]
[1734104072058,7.6332,225.34,225.28,12.98248846]
[1734104072294,7.6332,225.34,225.29,12.98248846]
[1734104072567,22.1798,225.43,225.2,39.69375614]
[1734104072568,7.4659,225.39,225.33,12.98248846]
[1734104072744,7.4659,225.39,225.34,12.98248846]
[1734104072941,7.4659,225.39,225.31,12.98248846]
[1734104073445,7.4659,225.39,225.33,12.98248846]
[1734104073653,7.4659,225.39,225.32,12.98248846]
[1734104073863,7.4659,225.39,225.31,12.98248846]
[1734104074873,7.4659,225.39,225.32,12.98248846]
[1734104075481,7.4659,225.39,225.31,12.98248846]
[1734104076172,7.4659,225.39,225.3,12.98248846]
[1734104077064,7.4659,225.39,225.32,12.98248846]
[1734104078966,11.3322,225.43,225.33,12.98248846]
[1734104079186,7.1925,225.45,225.4,12.98248846]
[1734104080182,7.1925,225.45,225.34,0.66552709]
[1734104080183,11.7969,225.49,225.41,12.98248846]
[1734104080864,11.7969,225.49,225.4,12.98248846]
[1734104081068,11.7969,225.49,225.28,26.7]
[1734104081069,11.7969,225.49,225.38,12.98248846]
[1734104081475,11.7969,225.49,225.39,12.98248846]
[1734104081676,11.7969,225.49,225.34,20.0]
[1734104081677,11.7969,225.49,225.4,12.98248846]
[1734104082487,11.7969,225.49,225.39,12.98248846]
[1734104083162,11.7969,225.49,225.4,12.98248846]
[1734104084083,7.5916,225.5,225.4,12.98248846]
[1734104084286,11.0869,225.49,225.38,12.98248846]
[1734104084681,11.0869,225.49,225.37,12.98248846]
[1734104084868,20.0,225.46,225.36,12.98248846]
[1734104085477,20.0,225.46,225.38,12.98248846]
[1734104085695,20.0,225.46,225.37,12.98248846]
[1734104087390,20.0,225.46,225.38,12.98248846]
[1734104087592,31.0884,225.46,225.37,12.98248846]
[1734104087889,31.0884,225.46,225.36,12.98248846]
[1734104089191,12.4454,225.45,225.33,12.98248846]
[1734104089395,12.4454,225.45,225.32,32.98248846]
[1734104089699,12.4454,225.45,225.32,12.98248846]
[1734104090392,11.0894,225.44,225.32,12.98248846]
[1734104091775,11.0894,225.44,225.27,11.8391]
[1734104091776,11.0894,225.44,225.31,12.98248846]
[1734104092286,7.2205,225.43,225.29,12.98248846]
[1734104092488,20.0,225.4,225.29,12.98248846]
[1734104093202,20.0,225.4,225.28,12.98248846]
[1734104093994,11.0918,225.39,225.28,12.98248846]
[1734104096065,11.0918,225.39,225.27,12.98248846]
[1734104096385,20.0,225.36,225.25,12.98248846]
[1734104096585,7.7494,225.34,225.23,12.98248846]
[1734104096786,7.7494,225.34,225.22,12.98248846]
[1734104097692,11.0948,225.33,225.22,12.98248846]
[1734104097890,11.0948,225.33,225.23,12.98248846]
[1734104100789,7.7494,225.34,225.25,12.98248846]
[1734104101107,7.7494,225.34,225.28,12.98248846]
[1734104101278,18.8437,225.34,225.23,12.98248846]
[1734104101485,18.8437,225.34,225.22,12.98248846]
[1734104102210,23.902374,225.33,225.23,12.98248846]
[1734104102503,18.8437,225.34,225.24,12.98248846]
[1734104102687,18.8437,225.34,225.23,12.98248846]
[1734104103579,18.8437,225.34,225.24,12.98248846]
[1734104103989,18.8437,225.34,225.25,12.98248846]
[1734104105675,18.8437,225.34,225.26,12.98248846]
[1734104106298,18.8437,225.34,225.25,12.98248846]
[1734104106882,18.8437,225.34,225.24,12.98248846]
[1734104108204,18.8437,225.34,225.26,12.98248846]
[1734104108785,18.8437,225.34,225.25,12.98248846]
[1734104109187,18.8437,225.34,225.24,12.98248846]
[1734104110113,18.8437,225.34,225.25,12.98248846]
[1734104110913,22.1843,225.39,225.3,12.98248846]
[1734104110914,7.1635,225.39,225.3,12.98248846]
[1734104112521,7.1635,225.39,225.31,12.98248846]
[1734104113507,7.1635,225.39,225.32,12.98248846]
[1734104113711,7.1635,225.39,225.31,12.98248846]
[1734104114931,18.2484,225.44,225.33,12.98248846]
[1734104116102,18.2484,225.44,225.31,12.98248846]
[1734104116628,0.12549,225.43,225.29,12.98248846]
[1734104117913,11.0904,225.42,225.29,12.98248846]
[1734104119224,11.0904,225.42,225.3,12.98248846]
[1734104119521,11.0904,225.42,225.32,12.98248846]
[1734104119727,7.159,225.44,225.34,12.98248846]
[1734104120230,7.159,225.44,225.33,12.98248846]
[1734104121919,7.159,225.44,225.32,12.98248846]
[1734104122448,7.159,225.44,225.32,0.12549]
[1734104123529,7.159,225.44,225.32,12.98248846]
[1734104123940,7.159,225.44,225.36,12.98248846]
[1734104124242,7.159,225.44,225.4,12.98248846]
[1734104124448,11.686,225.46,225.4,12.98248846]
[1734104124605,11.686,225.46,225.38,13.10797846]
[1734104125741,11.686,225.46,225.39,12.98248846]
[1734104127140,11.686,225.46,225.38,0.12549]
[1734104127141,11.686,225.46,225.38,12.98248846]
[1734104127454,11.686,225.46,225.34,32.98248846]
[1734104128431,11.0889,225.45,225.32,12.98248846]
[1734104128740,7.6959,225.41,225.28,12.98248846]
[1734104129113,7.6959,225.41,225.27,12.98248846]
[1734104130040,11.0913,225.4,225.27,12.98248846]
[1734104130246,11.0913,225.4,225.26,12.98248846]
[1734104130449,11.0913,225.4,225.24,12.98248846]
[1734104130450,11.83279,225.39,225.24,12.98248846]
[1734104130614,20.0,225.36,225.23,12.98248846]
[1734104130815,20.0,225.36,225.22,12.98248846]
[1734104131015,7.7162,225.35,225.22,12.98248846]
[1734104131411,7.7162,225.35,225.23,12.98248846]
[1734104132016,18.8103,225.35,225.23,12.98248846]
[1734104132618,18.8103,225.35,225.25,12.98248846]
[1734104134230,7.7162,225.35,225.25,12.98248846]
[1734104134440,7.7162,225.35,225.27,12.98248846]
[1734104135617,7.7162,225.35,225.25,12.98248846]
[1734104136256,7.7162,225.35,225.26,12.98248846]
[1734104136772,11.7073,225.39,225.31,12.98248846]
[1734104137556,11.7073,225.39,225.29,12.98248846]
[1734104137720,11.7073,225.39,225.3,12.98248846]
[1734104138531,11.7073,225.39,225.32,13.10797846]
[1734104138750,7.1392,225.4,225.33,12.98248846]
[1734104139258,7.1392,225.4,225.32,12.98248846]
[1734104139830,7.1392,225.4,225.31,12.98248846]
[1734104140029,7.1392,225.4,225.3,12.98248846]
[1734104140352,7.1392,225.4,225.31,12.98248846]
[1734104140654,7.1392,225.4,225.3,12.98248846]
[1734104140962,7.1392,225.4,225.29,12.98248846]
[1734104141124,7.1392,225.4,225.28,13.10797846]
[1734104141457,11.0918,225.39,225.27,12.98248846]
[1734104141637,11.0918,225.39,225.26,12.98248846]
[1734104142436,11.0918,225.39,225.25,12.98248846]
[1734104142635,0.12549,225.38,225.25,12.98248846]
[1734104142963,11.0928,225.37,225.25,12.98248846]
[1734104143161,11.0928,225.37,225.24,12.98248846]
[1734104143456,11.2748,225.36,225.23,32.98248846]
[1734104143626,11.2748,225.36,225.23,12.98248846]
[1734104144258,11.0938,225.35,225.23,12.98248846]
[1734104146863,11.0938,225.35,225.2,0.66582961]
[1734104147164,0.12549,225.33,225.2,12.98248846]
[1734104147664,18.7624,225.28,225.17,4.0]
[1734104147962,20.0,225.25,225.17,4.0]
[1734104150039,20.0,225.25,225.17,16.98248846]
[1734104150242,18.7624,225.28,225.19,12.98248846]
[1734104150442,18.7624,225.28,225.21,12.98248846]
[1734104150637,7.2852,225.28,225.21,12.98248846]
[1734104150859,7.2852,225.28,225.19,12.98248846]
[1734104151685,7.2852,225.28,225.21,12.98248846]
[1734104152052,7.2852,225.28,225.19,12.98248846]
[1734104152253,7.2852,225.28,225.23,12.98248846]
[1734104152480,19.7909,225.33,225.25,12.98248846]
[1734104153278,19.7909,225.33,225.21,0.66575809]
[1734104153279,19.7909,225.33,225.26,12.98248846]
[1734104153483,11.5064,225.38,225.28,12.98248846]
[1734104153692,18.9632,225.38,225.3,12.98248846]
[1734104153982,18.9632,225.38,225.31,12.98248846]
[1734104154184,18.9632,225.38,225.28,24.027864]